[Event "Mitropa Cup Open 2019"]
[Site "Radenci"]
[Date "2019.06.04"]
[Round "9.11"]
[White "Gaehwiler, Gabriel"]
[Black "Shytaj, Luca"]
[Result "0-1"]
[ECO "E11"]
[WhiteElo "2431"]
[BlackElo "2490"]
[Annotator "RC"]
[PlyCount "86"]
[EventDate "2019.05.27"]
[EventType "team-tourn"]
[EventCountry "SLO"]
[SourceTitle "playchess.com"]
[Source "ChessBase"]
[SourceQuality "1"]
[WhiteTeam "SUI"]
[BlackTeam "ITA"]
[WhiteTeamCountry "SUI"]
[TimeControl "40/5400+30:1800+30"]

1. d4 {[%emt 0:00:00]} Nf6 {[%emt 0:00:00]} 2. c4 {[%emt 0:00:00]} e6 {[%emt 0:00:00]} 3. Nf3 {[%emt 0:01:33]} Bb4+ {[%emt 0:00:34]} 4. Bd2 {[%emt 0:00:05]} a5 {[%emt 0:00:12]} 5. g3 {[%emt 0:08:04]} d6 {[%emt 0:00:55]} 6. Bg2 {[%emt 0:00:55]} Nbd7 {[%emt 0:00:29]} 7. O-O {[%emt 0:04:26]} e5 {[%emt 0:00:37]} 8. e3 {[%emt 0:05:45]} Bxd2 {[%emt 0:13:03]} 9. Qxd2 {[%emt 0:00:40]} O-O {[%emt 0:01:11]} 10. Nc3 {[%emt 0:01:15]} Re8 {[%emt 0:03:03]} 11. e4 {[%emt 0:00:43]} c6 {[%emt 0:05:47]} 12. Rfe1 {[%emt 0:13:18]} a4 {[%emt 0:04:41]} 13. b3 {[%emt 0:19:24]} axb3 {[%emt 0:03:15]} 14. axb3 {[%emt 0:01:25]} Rxa1 {[%emt 0:00:10]} 15. Rxa1 {[%emt 0:00:03]} Qb6 {[%emt 0:00:29]} 16. Rb1 {[%emt 0:02:30]} Qb4 {[%emt 0:06:47]} 17. d5 {[%emt 0:04:08]} h6 {[%emt 0:15:04]} 18. Ne1 {[%emt 0:03:39]} cxd5 {[%emt 0:02:17]} 19. Nc2 {[%emt 0:02:02]} Qb6 {[%emt 0:00:55]} 20. cxd5 {[%emt 0:03:01]} Nf8 {[%emt 0:03:54]} 21. Na3 {[%emt 0:08:00]} Bd7 {[%emt 0:03:38]} 22. Nc4 {[%emt 0:02:29]} Qc7 {[%emt 0:01:51]} 23. Rc1 {[%emt 0:04:31]} b5 {[%emt 0:02:27]} 24. Ne3 {[%emt 0:00:59]} Qb6 {[%emt 0:01:27]} 25. Ne2 {[%emt 0:04:22]} Ra8 {[%emt 0:03:40]} 26. h3 {[%emt 0:01:52]} h5 {[%emt 0:00:59]} 27. Qb4 {[%emt 0:01:15]} Ra2 {[%emt 0:01:12]} 28. Rc2 {[%emt 0:03:07]} Rxc2 {[%emt 0:02:42]} 29. Nxc2 {[%emt 0:00:01]} h4 {[%emt 0:00:08]} 30. g4 {[%emt 0:01:18]} Ng6 {[%emt 0:03:01]} 31. Ne3 {[%emt 0:00:59]} Qc7 {[%emt 0:04:46]} 32. Nf5 {[%emt 0:01:06]} Nf4 {[%emt 0:03:30]} 33. Nxf4 {[%emt 0:00:31]} Qc1+ {[%emt 0:02:38]} 34. Kh2 {[%emt 0:02:41]} Qxf4+ {[%emt 0:00:21]} 35. Kg1 {[%emt 0:00:01]} Bxf5 {[%emt 0:01:01]} 36. gxf5 {[%emt 0:00:02]} Qc1+ {[%emt 0:06:36]} 37. Bf1 {[%emt 0:00:19]} Qc2 {[%emt 0:02:03]} 38. Qxd6 {[%emt 0:00:34]} Qxf2+ {[%emt 0:00:57]} 39. Kxf2 {[%emt 0:00:04]} Nxe4+ {[%emt 0:00:02]} 40. Kf3 {[%emt 0:00:00]} Nxd6 {[%emt 0:00:00]} 41. Kg4 {[%emt 0:16:55]} b4 {[%emt 0:03:04]} 42. Bd3 {[%emt 0:02:29]} Kf8 {[%emt 0:01:08]} 43. Kxh4 {[%emt 0:02:52]} e4 {[%emt 0:01:07]} 0-1